bitfinex/quotes_ETHUSD_20240910
["timestamp","ask_amount","ask_price","bid_price","bid_amount"]
[1725971386282,2.77896978,2360.6,2360.3,1.32604148]
[1725971389574,0.8853879,2360.6,2360.3,1.32604148]
[1725971391168,0.8853879,2360.6,2360.3,0.55]
[1725971391610,1.6428773,2360.6,2360.3,0.55]
[1725971392116,4.0731773,2360.5,2360.3,0.55]
[1725971392411,3.3156879,2360.5,2360.3,0.55]
[1725971392708,3.3156879,2360.5,2360.1,0.55]
[1725971394032,0.75770068,2360.4,2360.1,0.55]
[1725971394225,3.3156879,2360.5,2360.1,0.55]
[1725971394542,0.75787103,2360.4,2360.1,0.55]
[1725971395438,1.64325893,2360.4,2360.1,0.55]
[1725971395640,2.78040804,2360.4,2360.1,0.55]
[1725971397340,1.64325893,2360.3,2360.1,0.55]
[1725971397669,2.02253701,2360.3,2360.1,0.55]
[1725971397974,0.75873388,2360.2,2360.1,0.55]
[1725971398272,0.75873388,2360.2,2360.1,1.28652524]
[1725971398478,2.78256489,2360.2,2360.1,1.28652524]
[1725971399729,0.75873388,2360.2,2360.1,1.28652524]
[1725971400231,0.75873388,2360.2,2360.1,3.56812524]
[1725971400432,0.76241326,2360.2,2360.1,6.65285607]
[1725971400989,2.79143532,2360.2,2360.1,6.65285607]
[1725971401336,0.76241326,2360.2,2360.1,6.65285607]
[1725971401862,2.79172637,2360.2,2360.1,6.65285607]
[1725971402263,0.8853879,2360.4,2360.2,2.3638]
[1725971402484,0.8853879,2360.4,2360.3,4.48963227]
[1725971402677,0.8853879,2360.5,2360.3,7.48963227]
[1725971402847,0.76271743,2360.4,2360.3,5.99852178]
[1725971403057,0.76271743,2360.4,2360.3,7.48963227]
[1725971404241,0.8853879,2360.5,2360.3,5.12583227]
[1725971404447,0.8853879,2360.6,2360.4,6.17030289]
[1725971404671,0.8853879,2360.6,2360.5,2.12582493]
[1725971404858,1.90664858,2360.6,2360.5,2.95543771]
[1725971405060,3.23668733,2360.6,2360.5,3.55]
[1725971405378,5.20542599,2360.6,2360.3,3.0]
[1725971405578,2.22343759,2360.7,2360.2,2.4689]
[1725971405579,1.33465063,2360.4,2360.2,2.4689]
[1725971405878,2.79643631,2360.3,2360.2,2.4689]
[1725971406035,2.79643631,2360.3,2360.2,3.16490105]
[1725971406236,2.79643631,2360.3,2360.2,6.16490105]
[1725971406636,2.79643631,2360.3,2360.2,6.58801419]
[1725971407176,2.79643631,2360.3,2360.2,7.13801419]
[1725971407360,0.76265943,2360.3,2360.2,7.13801419]
[1725971407533,2.79610506,2360.3,2360.2,7.13800913]
[1725971408437,2.79610506,2360.3,2360.2,3.97310808]
[1725971408699,3.67970233,2360.3,2360.1,0.42310808]
[1725971408872,2.79610395,2360.2,2360.1,3.93271049]
[1725971409176,0.76247728,2360.2,2360.1,4.74916952]
[1725971409689,0.76247728,2360.2,2360.1,4.32598154]
[1725971409854,0.88978662,2360.3,2360.1,4.74916724]
[1725971410055,0.88978662,2360.4,2360.2,1.44810242]
[1725971410393,2.79591859,2360.3,2360.2,0.55]
[1725971410680,3.24084723,2360.3,2360.0,0.55]
[1725971410877,2.7959349,2360.2,2360.0,4.50349105]
[1725971411054,0.88980293,2360.2,2360.0,4.50349105]
[1725971411373,0.88980293,2360.2,2360.0,4.58822105]
[1725971411600,0.88980293,2360.3,2360.0,4.58822105]
[1725971411744,2.79924504,2360.2,2360.0,4.58822105]
[1725971411944,0.88980293,2360.3,2360.0,4.58822105]
[1725971412281,2.79924452,2360.2,2360.0,4.50349105]
[1725971412585,0.88980293,2360.2,2360.0,4.50349105]
[1725971412794,0.88980293,2360.2,2360.1,0.84884015]
[1725971412950,2.79934703,2360.2,2360.1,1.39884015]
[1725971413154,0.76381764,2360.2,2360.1,1.39884015]
[1725971413464,2.79934501,2360.2,2360.1,1.39884015]
[1725971414049,0.76382071,2360.2,2360.1,1.39884015]
[1725971414347,0.76382071,2360.2,2360.1,0.55]
[1725971414348,2.79935918,2360.2,2360.1,0.55]
[1725971415087,3.24427151,2360.2,2360.1,0.55]
[1725971416653,3.24427151,2360.2,2359.9,0.55]
[1725971416985,2.79951681,2360.1,2359.9,1.28860105]
[1725971417298,0.76382071,2360.0,2359.9,1.28860105]
[1725971417879,2.79962943,2360.0,2359.9,1.28860105]
[1725971418088,0.88996056,2360.1,2360.0,2.2608]
[1725971418297,0.76386483,2360.1,2360.0,5.89552967]
[1725971418449,0.88996056,2360.2,2360.0,5.89552967]
[1725971418650,0.88996056,2360.2,2360.1,2.83477451]
[1725971418959,2.79951497,2360.2,2360.1,5.83477451]
[1725971419179,2.79951497,2360.2,2360.1,5.91950488]
[1725971419393,0.76382176,2360.2,2360.1,5.91950488]
[1725971419711,0.76382176,2360.2,2360.1,8.21960488]
[1725971419897,2.79948211,2360.2,2360.1,8.21960488]
[1725971420067,0.76382176,2360.2,2360.1,4.42839439]
[1725971420264,0.76382176,2360.2,2360.1,1.34366402]
[1725971420265,2.79952973,2360.2,2360.1,1.34366402]
[1725971420476,2.79952973,2360.2,2360.1,0.55]
[1725971423305,2.79952167,2360.2,2360.1,2.04111049]
[1725971423514,1.33471526,2360.3,2360.1,2.04111049]
[1725971423515,0.88996056,2360.3,2360.1,2.12584168]
[1725971423813,0.88996056,2360.3,2360.2,0.51258417]
[1725971423990,2.79951014,2360.3,2360.2,4.06258417]
[1725971424199,2.79951014,2360.3,2360.2,3.55]
[1725971424872,2.79951014,2360.3,2360.2,0.55]
[1725971429925,3.24426484,2360.3,2360.2,0.55]
[1725971430228,3.24426484,2360.3,2359.7,3.39456718]
[1725971430229,6.32297552,2360.3,2360.1,0.55]
[1725971430542,3.24446104,2360.2,2359.9,0.55]
[1725971430827,3.24446104,2360.2,2359.4,2.3408]
[1725971430828,1.773385,2360.0,2359.4,2.3408]
[1725971431025,0.89002957,2359.8,2359.4,2.3408]
[1725971431233,2.79957915,2359.7,2359.3,1.49111049]
[1725971431381,0.89002957,2359.7,2359.3,2.16738385]
[1725971432290,0.89002957,2359.7,2359.4,0.55]
[1725971432495,0.89002957,2359.8,2359.4,0.55]
[1725971432837,0.7635141,2359.7,2359.5,1.76284888]
[1725971432992,0.89002957,2359.8,2359.6,0.55]
[1725971433334,0.7635143,2359.7,2359.6,0.55]
[1725971434149,0.76334951,2359.7,2359.6,0.55]
[1725971434346,0.89002957,2359.8,2359.6,0.55]
[1725971434949,2.4227,2359.6,2358.7,3.25702306]
[1725971435120,0.88937438,2359.4,2358.7,2.3767]
[1725971435308,0.76333486,2359.3,2358.7,2.3767]
[1725971435513,4.45579505,2359.3,2358.7,2.3767]
[1725971435711,3.31207438,2359.3,2358.7,2.3767]
[1725971436307,0.76246791,2359.2,2358.8,0.08477308]
[1725971436506,4.0156041,2359.3,2358.8,0.08477308]
[1725971436507,3.12622972,2359.3,2358.8,0.08477308]
[1725971436713,4.0156041,2359.3,2358.8,0.08477308]
[1725971436913,0.76177554,2359.2,2358.8,0.08477308]
[1725971437211,3.31207438,2359.3,2358.8,0.08477308]
[1725971437535,2.4227,2359.3,2358.6,3.08477881]
[1725971437736,2.4227,2359.3,2358.6,4.98326258]
[1725971437948,3.31207438,2359.3,2358.6,4.98326258]
[1725971438309,3.31207438,2359.3,2358.7,0.55]
[1725971438515,2.4227,2359.3,2358.8,0.08477888]
[1725971438730,3.06518847,2359.3,2358.9,0.55]
[1725971440058,3.95456285,2359.3,2358.7,0.55]
[1725971440754,0.52886244,2359.2,2358.7,0.55]
[1725971442028,0.52886244,2359.2,2358.7,0.63478142]
[1725971442354,2.4227,2359.3,2358.7,0.63478142]
[1725971444148,2.4227,2359.3,2358.7,0.55]
[1725971445660,3.23175886,2359.0,2358.0,2.3634]
[1725971445831,2.63867589,2358.9,2358.0,2.3634]
[1725971447164,2.63867589,2358.9,2358.2,3.0]
[1725971448461,2.63867589,2358.9,2358.3,0.55]
[1725971449791,2.63867589,2358.9,2358.2,0.55]
[1725971449996,2.63867589,2358.9,2358.2,1.14982033]
[1725971450676,2.63867589,2358.9,2358.2,0.55]
[1725971452467,2.63867589,2358.9,2358.3,0.08480321]
[1725971452694,2.63867589,2358.9,2358.4,0.55]
[1725971453491,3.23175886,2358.8,2357.6,3.05696438]
[1725971453692,2.3894,2358.7,2357.6,10.81194596]
[1725971454656,2.4391,2358.5,2357.6,10.81194596]
[1725971455094,2.4391,2358.5,2357.7,0.55]
[1725971455267,2.4391,2358.5,2357.8,1.1361946]
[1725971455456,2.4391,2358.5,2357.9,0.55]
[1725971463016,2.4391,2358.5,2357.8,0.55]
[1725971470218,2.4391,2358.5,2357.8,0.63481719]
[1725971470736,2.4391,2358.5,2357.9,1.49383262]
[1725971471028,2.4391,2358.5,2358.0,1.06204142]
[1725971471237,2.4391,2358.5,2358.0,4.06204142]
[1725971472440,2.4391,2358.5,2358.0,1.06204142]
[1725971472640,2.4391,2358.5,2358.1,3.0]
[1725971472828,2.4391,2358.5,2358.2,0.55]
[1725971473015,2.4391,2358.5,2358.0,1.06204142]
[1725971474925,2.4391,2358.5,2358.1,0.49949618]
[1725971475125,2.3958,2358.9,2358.2,0.55]
[1725971475497,2.3958,2358.9,2358.2,3.55]
[1725971475653,3.23635935,2358.7,2358.2,0.55]
[1725971475812,2.3958,2358.6,2358.1,0.55]
[1725971476148,2.3958,2358.6,2357.9,0.55]
[1725971476346,2.3958,2358.6,2357.9,1.17221091]
[1725971476668,2.3958,2358.6,2357.9,1.0874]
[1725971478999,2.4034,2358.5,2357.9,1.0874]
[1725971479552,3.28929588,2358.5,2357.9,1.0874]
[1725971479918,2.4034,2358.5,2358.0,0.40874]
[1725971480241,2.4034,2358.5,2358.1,0.55]
[1725971480455,0.76184252,2358.4,2358.1,0.55]
[1725971480958,3.28929588,2358.5,2358.1,0.55]
[1725971481116,0.7618936,2358.4,2358.1,0.86087868]
[1725971481423,0.88589588,2358.8,2358.2,3.91608709]
[1725971481632,0.88589588,2358.7,2358.3,5.08075188]
[1725971481815,0.88589588,2358.8,2358.4,0.67972774]
[1725971482015,0.88589588,2358.8,2358.5,1.14286632]
[1725971482016,2.79119874,2358.8,2358.5,1.14286632]
[1725971482415,0.76212114,2358.7,2358.5,1.14286632]
[1725971482615,0.76212114,2358.7,2358.5,1.05807519]
[1725971482820,1.64801702,2358.7,2358.5,1.05807519]
[1725971483090,0.76212114,2358.6,2358.5,1.05807519]
[1725971483295,0.76212114,2358.6,2358.5,0.55]
[1725971483451,2.79166814,2358.6,2358.5,0.55]
[1725971484494,5.61501609,2358.6,2358.3,0.55]
[1725971484692,2.79504977,2358.5,2358.3,0.55]
[1725971484852,0.76212114,2358.4,2358.3,0.55]
[1725971485446,2.79707203,2358.4,2358.3,0.55]
[1725971485687,3.23837796,2358.4,2358.3,0.55]
[1725971485889,1.90953413,2358.4,2358.3,0.55]
[1725971486293,3.23837796,2358.4,2358.3,0.55]
[1725971487025,3.6813259,2358.4,2358.3,0.55]
[1725971487185,3.43717797,2358.4,2358.3,0.55]
[1725971487380,3.24457415,2358.4,2358.3,0.55]
[1725971489216,3.24465071,2358.4,2358.3,0.55]
[1725971490632,1.77179177,2358.5,2358.3,0.55]
[1725971490633,3.29967256,2358.5,2358.3,0.55]
[1725971490793,3.24503976,2358.4,2358.3,0.55]
[1725971491130,3.43772731,2358.4,2358.3,0.55]
[1725971491287,3.6816498,2358.4,2358.3,0.55]
[1725971492018,3.24507635,2358.4,2358.3,0.55]
[1725971492400,3.6816498,2358.4,2358.3,0.55]
[1725971492593,4.68756492,2358.4,2358.3,0.55]
[1725971492924,6.21548892,2358.4,2358.3,0.55]
[1725971493487,8.55128892,2358.4,2358.3,0.55]
[1725971495830,8.55159919,2358.4,2358.3,0.55]
[1725971497115,9.00548092,2358.4,2358.3,0.55]
[1725971497809,2.3197,2358.3,2357.7,7.48]
[1725971498014,0.8903983,2357.8,2357.7,7.48]
[1725971498216,2.8005666,2357.8,2357.4,2.4861]
[1725971498489,2.8005666,2357.8,2357.4,3.22891215]
[1725971498490,0.8903983,2357.8,2357.4,3.22891215]
[1725971498706,0.8903983,2357.8,2357.5,1.49353944]
[1725971499326,1.33559745,2357.9,2357.5,1.49353944]
[1725971499327,0.8903983,2357.9,2357.7,2.2828]
[1725971499538,0.8903983,2357.9,2357.8,0.55]
[1725971499691,2.80002785,2357.9,2357.8,0.55]
[1725971500637,0.8903983,2357.9,2357.6,0.55]
[1725971500934,2.79994292,2357.8,2357.6,0.55]
[1725971501244,0.8903983,2357.8,2357.6,1.45209463]
[1725971501425,0.8903983,2358.0,2357.7,3.96623944]
[1725971501621,0.8903983,2358.1,2357.9,1.49353944]
[1725971501841,0.8903983,2358.1,2358.0,3.0227]
[1725971502007,0.76368885,2358.1,2358.0,3.0227]
[1725971502209,2.79961045,2358.1,2358.0,3.0227]
[1725971502408,2.79963006,2358.1,2358.0,3.0227]
[1725971503237,2.79963006,2358.1,2358.0,0.55]
[1725971503420,2.79963006,2358.1,2357.9,3.55]
[1725971503621,0.76368885,2358.0,2357.9,3.55]
[1725971504337,0.8903983,2358.1,2357.9,3.55]
[1725971504643,0.76620265,2358.0,2357.9,3.55]
[1725971505841,0.76620096,2358.0,2357.9,3.55]
[1725971506898,0.8903983,2358.1,2357.9,3.55]
[1725971507133,0.7662045,2358.0,2357.9,3.55]
[1725971507337,0.7662045,2358.0,2357.9,0.55]
[1725971507533,0.7662045,2358.0,2357.8,0.55]
[1725971507737,0.8903983,2358.1,2357.8,0.63481373]
[1725971507936,0.76621066,2358.0,2357.8,0.55]
[1725971508807,0.8903983,2358.1,2357.8,0.55]
[1725971509116,0.8903983,2358.1,2357.8,0.63481425]
[1725971510434,0.8903983,2358.1,2357.9,3.77553944]
[1725971510643,0.8903983,2358.1,2358.0,6.41846388]
[1725971510949,0.8903983,2358.1,2358.0,5.91680424]
[1725971511965,1.33559745,2358.2,2358.0,5.91680424]
[1725971512121,2.2951,2358.8,2358.1,1.49353944]
[1725971512314,1.49353944,2358.7,2358.2,0.55]
[1725971512521,2.4478,2358.6,2357.9,3.0]
[1725971512720,4.33547338,2358.5,2357.9,3.0]
[1725971513019,3.94133944,2358.5,2357.9,3.0]
[1725971514059,2.4478,2358.5,2357.9,3.0]
[1725971514255,2.4478,2358.5,2358.0,0.55]
[1725971514939,0.89014311,2358.1,2358.0,0.55]
[1725971515139,2.81328597,2358.1,2358.0,0.55]
[1725971515643,2.81328597,2358.1,2357.9,0.55]
[1725971515644,2.81267902,2358.1,2357.9,0.55]
[1725971515818,0.89014311,2358.1,2357.9,0.55]
[1725971516334,0.76888523,2358.0,2357.9,0.55]
[1725971516529,0.89014311,2358.1,2357.9,0.55]
[1725971517559,0.76888265,2358.0,2357.9,0.55]
[1725971517752,0.76888265,2358.0,2357.8,0.55]
[1725971517950,0.89014311,2358.1,2357.8,0.55]
[1725971518146,0.7701377,2358.0,2357.8,0.63481427]
[1725971518325,0.89014311,2358.1,2357.8,0.63481427]
[1725971518526,0.7701394,2358.0,2357.8,0.63481427]
[1725971518725,0.89014311,2358.1,2357.8,0.63481427]
[1725971518950,0.77013523,2358.0,2357.8,0.63481427]
[1725971519157,0.89014311,2358.1,2357.8,0.63481427]
[1725971519330,0.77012961,2358.0,2357.8,0.63481427]
[1725971519536,0.89014311,2358.1,2357.8,0.63481496]
[1725971519728,0.77011825,2358.0,2357.8,2.87741984]
[1725971519923,0.89014311,2358.1,2357.9,3.0]
[1725971520231,0.89014311,2358.1,2358.0,0.55]
[1725971520424,0.89014311,2358.1,2357.8,0.63481496]
[1725971520425,2.81539691,2358.1,2357.8,0.63481496]
[1725971520624,0.89014311,2358.1,2357.8,2.87741984]
[1725971520828,0.89014311,2358.1,2357.9,3.0]
[1725971521021,0.89014311,2358.1,2358.0,0.55]
[1725971521221,2.81532596,2358.1,2358.0,0.55]
[1725971522169,2.81532596,2358.1,2357.9,0.55]
[1725971522483,0.89014311,2358.3,2358.0,1.99519908]
[1725971522767,1.78028623,2358.5,2358.2,1.49353944]
[1725971522768,0.89014311,2358.5,2358.2,1.49353944]
[1725971523121,0.89014311,2358.6,2358.3,0.08479531]
[1725971523260,0.76997822,2358.5,2358.3,1.13798692]
[1725971523571,0.89014311,2358.6,2358.3,4.13798692]
[1725971523869,0.89014311,2358.8,2358.5,3.86433944]
[1725971524069,0.89014311,2358.8,2358.7,1.49353944]
[1725971524272,0.89014311,2359.1,2358.7,2.04353944]
[1725971524457,2.81396996,2359.0,2358.7,2.24345178]
[1725971524660,2.81409433,2358.9,2358.8,0.55]
[1725971524836,3.25916589,2358.9,2358.8,0.55]
[1725971525035,1.92395122,2358.9,2358.7,0.55]
[1725971525258,0.76958049,2358.8,2358.6,0.55]
[1725971525464,0.88916687,2358.9,2358.6,0.55]
[1725971525663,3.82061467,2359.0,2358.6,0.55]
[1725971525664,2.81270235,2358.8,2358.6,0.55]
[1725971525876,0.88916687,2358.8,2358.6,0.55]
[1725971526083,0.88916687,2358.9,2358.6,0.55]
[1725971526381,3.82061467,2359.0,2358.6,0.63478447]
[1725971526382,0.88916687,2359.0,2358.6,0.63478447]
[1725971526828,0.88916687,2359.0,2358.6,0.6347797]
[1725971527032,0.88916687,2359.1,2358.7,2.3526]
[1725971527233,0.88916687,2359.1,2358.8,0.63477754]
[1725971527433,2.04214981,2359.1,2358.8,0.63477754]
[1725971527669,1.33521467,2359.2,2358.9,3.23457652]
[1725971527670,0.88916687,2359.2,2358.9,3.23457652]
[1725971527895,0.88916687,2359.3,2359.0,0.63477261]
[1725971528053,0.88916687,2359.3,2359.0,3.63477261]
[1725971528054,0.76861632,2359.2,2359.0,3.63477261]
[1725971528269,0.88916687,2359.3,2359.0,3.63477261]
[1725971528473,1.65746181,2359.3,2359.1,2.3677]
[1725971528689,2.48765688,2359.4,2359.2,0.55]
[1725971528690,0.88916687,2359.4,2359.2,0.55]
[1725971528909,0.88916687,2359.4,2359.2,0.63476558]
[1725971529198,0.88916687,2359.4,2359.2,0.55]
[1725971529199,2.81534224,2359.4,2359.2,0.55]
[1725971529368,0.76793987,2359.3,2359.2,0.55]
[1725971529572,0.88916687,2359.5,2359.1,5.71667652]
[1725971529773,0.88916687,2359.6,2359.2,4.56990353]
[1725971529974,1.33521467,2359.7,2359.2,4.56990353]
[1725971529975,0.88916687,2359.7,2359.3,0.08475781]
[1725971530172,0.88916687,2359.8,2359.4,0.55]
[1725971531600,3.22106402,2359.8,2359.4,0.55]
[1725971531792,0.88916687,2359.8,2359.3,0.55]
[1725971532009,0.88916687,2359.8,2359.3,0.63476392]
[1725971532205,1.65609027,2359.9,2359.3,0.63476392]
[1725971532382,0.88916687,2359.9,2359.3,1.56990796]
[1725971532773,1.65572058,2359.9,2359.3,1.56990796]
[1725971533015,0.76655371,2359.8,2359.3,1.56990796]
[1725971533214,0.88916687,2359.9,2359.3,1.56990796]
[1725971533379,0.88916687,2359.9,2359.4,2.9285908]
[1725971533580,0.88916687,2360.0,2359.5,3.55]
[1725971533782,2.80695279,2360.0,2359.5,3.55]
[1725971534017,0.88916687,2360.0,2359.5,3.63475751]
[1725971534205,3.14246687,2360.1,2359.5,4.29109206]
[1725971534521,0.76796787,2360.0,2359.5,4.29109206]
[1725971534882,0.76796787,2360.0,2359.5,3.55]
[1725971535075,0.76796787,2360.0,2359.5,0.55]
[1725971535076,0.88916687,2360.0,2359.5,0.55]
[1725971535376,5.50851995,2360.1,2359.4,0.63475751]
[1725971535377,4.47768154,2360.1,2359.4,0.63475751]
[1725971535694,0.88916687,2360.3,2359.7,5.61037652]
[1725971535891,0.88916687,2360.4,2359.8,4.20424807]
[1725971536091,0.88916687,2360.5,2359.9,3.23457652]
[1725971536319,3.15346687,2360.6,2360.0,3.63473343]
[1725971536506,2.2643,2360.6,2360.0,3.63473343]
[1725971536708,2.93627782,2360.6,2360.0,3.63473343]
[1725971536894,3.82544469,2360.6,2360.0,3.63473343]
[1725971537227,2.93627782,2360.6,2360.0,3.63473343]
[1725971538505,2.2643,2360.6,2360.0,3.63473343]
[1725971538815,2.2643,2360.6,2360.0,0.63473343]
[1725971539418,2.2643,2360.6,2360.0,0.55]
[1725971539582,2.2643,2360.6,2359.9,0.55]
[1725971539778,2.57964669,2360.6,2359.9,0.6347342]
[1725971543564,0.31534669,2360.6,2360.0,2.4124]
[1725971543732,2.346,2360.8,2360.1,0.55]
[1725971544129,2.346,2360.8,2360.1,3.63473412]
[1725971546862,3.22116687,2361.0,2360.2,2.2995]
[1725971547071,2.73246678,2361.0,2360.3,0.55]
[1725971548092,2.73246678,2361.0,2360.3,0.63472494]
[1725971548559,2.73246678,2361.0,2360.3,3.63472494]
[1725971548985,2.73246678,2361.0,2360.3,3.55]
[1725971549146,0.27324668,2360.9,2360.3,3.55]
[1725971552397,2.73246678,2361.0,2360.3,3.63472502]
[1725971553790,2.73246678,2361.0,2360.3,3.55]
[1725971554391,2.73246678,2361.0,2360.3,3.63472506]
[1725971558332,2.73246678,2361.0,2360.4,2.359]
[1725971558615,2.73246678,2361.0,2360.5,0.55]
[1725971560303,3.23457652,2361.1,2360.5,0.55]
[1725971560865,4.12374339,2361.1,2360.5,0.55]
[1725971561716,0.76634487,2361.0,2360.5,0.55]
[1725971561862,3.23457652,2360.8,2360.2,2.4583]
[1725971563216,3.23457652,2360.8,2360.3,0.55]
[1725971563571,4.12374339,2360.8,2360.3,0.55]
[1725971563977,3.23457652,2360.8,2360.3,0.55]
[1725971564514,4.12374339,2360.8,2360.3,0.55]
[1725971564729,0.84475669,2360.7,2360.3,0.55]
[1725971565601,3.65675794,2360.7,2360.3,0.55]
[1725971565911,1.73392356,2360.7,2360.3,0.55]
[1725971566689,3.23457652,2360.4,2360.0,7.48]
[1725971566880,4.12374339,2360.4,2359.8,2.3681]
[1725971567079,0.76929455,2360.3,2359.8,2.3681]
[1725971567621,2.81324355,2360.3,2359.8,2.3681]
[1725971567851,0.73830347,2360.2,2359.8,2.3681]
[1725971567973,1.50759802,2360.2,2359.8,2.3681]
[1725971568179,1.62747034,2360.2,2359.8,2.3681]
[1725971569120,1.62747034,2360.2,2359.9,0.55]
[1725971569277,2.82128702,2360.1,2359.9,0.55]
[1725971569468,0.88916687,2360.1,2359.9,0.55]
[1725971570202,0.88916687,2360.0,2359.9,0.55]
[1725971570590,2.82198682,2360.0,2359.9,0.55]
[1725971571129,0.7731309,2360.0,2359.9,0.55]
[1725971571416,0.88916687,2360.0,2359.9,0.55]
[1725971571624,2.82245989,2360.0,2359.9,0.55]
[1725971572120,3.26850769,2360.0,2359.9,0.55]
[1725971572975,2.82197942,2360.0,2359.9,0.55]
[1725971573192,3.26979675,2360.0,2359.9,0.55]
[1725971574720,2.82252725,2360.0,2359.9,0.55]
[1725971574882,0.77383283,2360.0,2359.9,0.84181]
[1725971575076,2.8281138,2360.0,2359.9,0.84181]
[1725971575532,2.83184502,2360.0,2359.9,0.84181]
[1725971575877,0.88794517,2360.2,2359.9,3.0057]
[1725971576080,2.05422017,2360.2,2360.1,2.4557]
[1725971576322,2.83184339,2360.2,2360.1,3.68105883]
[1725971576822,0.88794517,2360.3,2360.1,4.22535883]
[1725971577022,2.05431611,2360.3,2360.2,6.8877566]
[1725971577241,2.83188478,2360.3,2360.2,3.8877566]
[1725971577448,1.66551384,2360.3,2360.2,6.8877566]
[1725971577754,0.77756867,2360.3,2360.2,6.8877566]
[1725971577901,0.77765001,2360.3,2360.2,4.4320566]
[1725971578095,0.77765001,2360.3,2360.2,4.34732472]
[1725971578301,2.83225838,2360.3,2360.2,0.55]
[1725971578654,2.83225838,2360.3,2360.1,3.5659854]
[1725971578954,2.83225838,2360.3,2360.1,2.903]
[1725971578955,2.83234565,2360.2,2360.1,2.903]
[1725971579236,2.83257804,2360.2,2360.1,2.903]
[1725971581999,2.83365159,2360.0,2359.9,4.21308157]
[1725971584446,2.83365159,2360.0,2359.9,4.20660816]
[1725971584668,2.83365159,2360.0,2359.9,4.86968192]
[1725971586422,2.8348424,2360.0,2359.9,4.86968192]
[1725971587510,0.77832947,2360.0,2359.9,4.86968192]
[1725971587709,2.8348174,2360.0,2359.9,4.8696716]
[1725971588107,0.77832947,2360.0,2359.9,4.8696716]
[1725971588307,2.83478891,2360.0,2359.9,4.8696716]
[1725971588555,2.8348126,2360.0,2359.9,4.8696716]
[1725971588901,2.8348126,2360.0,2359.9,7.3318716]
[1725971589106,0.88901872,2360.2,2359.9,7.3318716]
[1725971589302,0.7782339,2360.1,2360.0,3.943187]
[1725971589449,0.88901872,2360.2,2360.0,4.4084506]
[1725971589658,2.83468679,2360.1,2360.0,6.19538716]
[1725971589857,2.83468679,2360.1,2360.0,6.67523287]
[1725971590155,0.77799595,2360.1,2360.0,6.67523287]
[1725971590497,2.83403952,2360.1,2360.0,6.67523287]
[1725971590700,0.77799595,2360.1,2360.0,7.40841697]
[1725971590882,2.83404674,2360.1,2360.0,7.40841697]
[1725971591054,0.77799595,2360.1,2360.0,7.40841697]
[1725971591255,2.83404785,2360.1,2360.0,7.40841697]
[1725971591595,2.83404723,2360.1,2360.0,7.40841697]
[1725971591772,1.66701467,2360.1,2360.0,7.40841697]
[1725971592105,2.83404889,2360.1,2360.0,7.40841697]
[1725971592313,2.83404836,2360.1,2360.0,7.40841697]
[1725971592517,0.77800805,2360.1,2360.0,7.40841697]
[1725971594128,2.83403406,2360.1,2360.0,6.0122]
[1725971594419,2.83409145,2360.1,2360.0,4.2130247]
[1725971595399,2.83409145,2360.1,2360.0,1.2130247]
[1725971596115,2.83596539,2360.1,2360.0,1.2130247]
[1725971596674,2.83596539,2360.1,2360.0,0.6630247]
[1725971596894,3.43091191,2360.1,2360.0,0.6630247]
[1725971597288,3.43091191,2360.1,2359.7,3.0]
[1725971597492,3.43091191,2360.1,2359.6,2.2674]
[1725971597493,0.77802909,2360.0,2359.6,2.2674]
[1725971597721,1.48396524,2360.1,2359.7,0.6630747]
[1725971598017,0.77935199,2360.0,2359.8,0.6630747]
[1725971598224,2.83761054,2359.9,2359.8,0.55]
[1725971598514,2.83761054,2359.9,2359.8,1.21311136]
[1725971599079,3.28169185,2359.9,2359.8,1.21311136]
[1725971599323,1.94861338,2359.9,2359.8,0.55]
[1725971599480,1.94861338,2359.9,2359.8,0.66313561]
[1725971599713,2.83777645,2359.9,2359.8,1.21313561]
[1725971599912,2.83777824,2359.9,2359.8,1.21313561]
[1725971600214,3.281827,2359.9,2359.8,1.21313561]
[1725971600536,2.83778405,2359.9,2359.8,1.21313561]
[1725971601751,1.94861338,2359.9,2359.8,1.21313561]
[1725971601946,3.281827,2359.9,2359.8,1.21313561]
[1725971603713,3.281827,2359.9,2359.8,0.55]
[1725971603914,3.281827,2359.9,2359.6,0.55]
[1725971604255,3.281827,2359.9,2359.3,7.48]
[1725971604256,4.34549753,2359.8,2359.7,0.66315841]
[1725971604422,2.2871,2359.7,2359.4,0.66326832]
[1725971604628,2.2871,2359.7,2359.3,7.48]
[1725971604629,4.06559373,2359.5,2359.3,7.48]
[1725971604843,4.06559373,2359.5,2358.8,2.3823]
[1725971604844,5.28682641,2359.4,2359.1,0.66336408]
[1725971605007,0.8893291,2359.2,2358.9,2.373]
[1725971605215,0.8893291,2359.5,2359.1,5.60757652]
[1725971605436,0.8893291,2359.6,2359.2,1.38367271]
[1725971605753,0.8893291,2359.6,2359.3,0.74810292]
[1725971605993,0.8893291,2359.6,2359.4,0.66334676]
[1725971606254,1.77872698,2359.8,2359.5,3.18800306]
[1725971606255,0.8893291,2359.8,2359.5,3.18800306]
[1725971606453,0.8893291,2359.8,2359.6,4.21334676]
[1725971606659,0.77929718,2359.7,2359.6,3.55]
[1725971606961,0.77929718,2359.7,2359.6,4.15746563]
[1725971607285,2.83759346,2359.7,2359.6,4.8206201]
[1725971608312,0.8893291,2359.8,2359.6,4.8206201]
[1725971608513,0.8893291,2359.8,2359.7,1.39768211]
[1725971608717,2.83750911,2359.8,2359.7,1.94768211]
[1725971609061,0.8893291,2359.9,2359.8,2.385]
[1725971609264,0.8893291,2360.0,2359.9,0.75672586]
[1725971609428,2.83745928,2360.0,2359.9,1.41988033]
[1725971609618,2.83745928,2360.0,2359.9,4.96988033]
[1725971610047,0.77925207,2360.0,2359.9,4.96977788]
[1725971610915,0.8893291,2360.1,2359.9,4.96977788]
[1725971611121,0.77922613,2360.0,2359.9,4.30672586]
[1725971611349,0.77922613,2360.0,2359.9,4.96976706]
[1725971612364,2.83741123,2360.0,2359.9,4.2130412]
[1725971612960,2.83741123,2360.0,2359.9,1.2130412]
[1725971613127,2.83741123,2360.0,2359.9,4.2130412]
[1725971613329,2.83741123,2360.0,2359.9,1.2130412]
[1725971614174,2.83752378,2360.0,2359.9,1.2130412]
[1725971616079,3.28218252,2360.0,2359.9,0.55]
[1725971616578,4.69438758,2360.0,2359.8,1.21313665]
[1725971616787,3.28201566,2359.9,2359.8,0.55]
[1725971616939,3.28201566,2359.9,2359.5,3.0]